Workbook

Sheet Vyhodnotit
A1: Tým | B1: Jméno | C1: Branky | D1: Nahrávky | E1: Kanada | F1: Zákroky | G1: Obdržené branky | H1: Brankáři
A2: Bobři | B2: Younnes Kurovský | C2: 0 | D2: 2 | E2: =C2+D2 -> 2 | F2: 71 | G2: 32 | H2: =F2/(F2+G2) -> 0.6893203883
A3: Tajfun | B3: Kryštof Huk | E3: =C3+D3 -> 0 | F3: 57 | G3: 40 | H3: =F3/(F3+G3) -> 0.587628866
A4: Fabiánky | B4: brankář hostování | C4: 0 | D4: 0 | E4: =C4+D4 -> 0 | F4: 48 | G4: 37 | H4: =F4/(F4+G4) -> 0.5647058824
A5: Trilobit A | B5: Jakub Mareš | C5: 0 | D5: 1 | E5: =C5+D5 -> 1 | F5: 49 | G5: 38 | H5: =F5/(F5+G5) -> 0.5632183908
A6: Bobříci | B6: Ondřej Drbal | C6: 0 | D6: 0 | E6: =C6+D6 -> 0 | F6: 34 | G6: 40 | H6: =F6/(F6+G6) -> 0.4594594595
A7: Bobříci | B7: Ignátius Hořejší | D7: 1 | E7: =C7+D7 -> 1 | F7: 40 | G7: 49 | H7: =F7/(F7+G7) -> 0.4494382022
A8: Tajfun | B8: Jonáš Kučera | C8: 0 | D8: 0 | E8: =C8+D8 -> 0 | F8: 20 | G8: 25 | H8: =F8/(F8+G8) -> 0.4444444444
A9: Akičita | B9: Michal Malhotský | C9: 0 | D9: 0 | E9: =C9+D9 -> 0 | F9: 39 | G9: 50 | H9: =F9/(F9+G9) -> 0.4382022472
A10: Trilobit B | B10: Václav Vaněk | C10: 0 | D10: 0 | E10: =C10+D10 -> 0 | F10: 38 | G10: 52 | H10: =F10/(F10+G10) -> 0.4222222222
A11: Divoká sedma | B11: Filip Václavek | C11: 0 | D11: 0 | E11: =C11+D11 -> 0 | F11: 32 | G11: 50 | H11: =F11/(F11+G11) -> 0.3902439024
A12: Akičita | B12: Patrik Moravec | C12: 2 | D12: 3 | E12: =C12+D12 -> 5 | F12: 0 | G12: 0 | H12: 0
A13: Akičita | B13: Jan Uher | C13: 7 | D13: 0 | E13: =C13+D13 -> 7 | F13: 0 | G13: 0 | H13: 0
A14: Akičita | B14: Lenka Zobačová | C14: 2 | D14: 0 | E14: =C14+D14 -> 2 | F14: 0 | G14: 0 | H14: 0
A15: Akičita | B15: Kristýna Kužmová | C15: 1 | D15: 0 | E15: =C15+D15 -> 1 | F15: 0 | G15: 0 | H15: 0
A16: Akičita | B16: Robin Moravec | C16: 0 | D16: 0 | E16: =C16+D16 -> 0 | F16: 0 | G16: 0 | H16: 0
A17: Akičita | B17: Adam Uher | C17: 0 | D17: 0 | E17: =C17+D17 -> 0 | F17: 0 | G17: 0 | H17: 0
A18: Akičita | B18: Ondřej Hudák | C18: 0 | D18: 0 | E18: =C18+D18 -> 0 | F18: 0 | G18: 0 | H18: 0
A19: Akičita | B19: Kateřina Kužmová | C19: 0 | D19: 0 | E19: =C19+D19 -> 0 | F19: 0 | G19: 0 | H19: 0
A20: Akičita | B20: Šárka Němcová | C20: 0 | D20: 0 | E20: =C20+D20 -> 0 | F20: 0 | G20: 0 | H20: 0
A21: Bobři | B21: Martin Kareš | C21: 39 | D21: 39 | E21: =C21+D21 -> 78 | F21: 0 | G21: 0 | H21: 0
A22: Bobři | B22: Jan Procházka | C22: 14 | D22: 24 | E22: =C22+D22 -> 38 | F22: 0 | G22: 0 | H22: 0
A23: Bobři | B23: Jakub Rilják | C23: 24 | D23: 10 | E23: =C23+D23 -> 34 | F23: 0 | G23: 0 | H23: 0
A24: Bobři | B24: Adam Sokol | C24: 39 | D24: 22 | E24: =C24+D24 -> 61 | F24: 0 | G24: 0 | H24: 0
A25: Bobři | B25: Maxim Klouček | C25: 15 | D25: 19 | E25: =C25+D25 -> 34 | F25: 0 | G25: 0 | H25: 0
A26: Bobři | B26: Jiří Bidlo | C26: 12 | D26: 14 | E26: =C26+D26 -> 26 | F26: 0 | G26: 0 | H26: 0
A27: Bobři | B27: David Farský | C27: 5 | D27: 6 | E27: =C27+D27 -> 11 | F27: 0 | G27: 0 | H27: 0
A28: Bobříci | B28: Jáchym Vodňanský | C28: 16 | D28: 6 | E28: =C28+D28 -> 22 | F28: 0 | G28: 0 | H28: 0
A29: Bobříci | B29: Eliáš Mesany | C29: 11 | D29: 3 | E29: =C29+D29 -> 14 | F29: 0 | G29: 0 | H29: 0
A30: Bobříci | B30: Samuel Mesany | C30: 12 | D30: 1 | E30: =C30+D30 -> 13 | F30: 0 | G30: 0 | H30: 0
A31: Bobříci | B31: Vojtěch Procházka | C31: 0 | D31: 1 | E31: =C31+D31 -> 1 | F31: 0 | G31: 0 | H31: 0
A32: Bobříci | B32: Benjamín Mesany | C32: 0 | D32: 1 | E32: =C32+D32 -> 1 | F32: 0 | G32: 0 | H32: 0
A33: Bobříci | B33: Adam Šalamoun | C33: 1 | D33: 0 | E33: =C33+D33 -> 1 | F33: 0 | G33: 0 | H33: 0
A34: Bobříci | B34: Tobiáš Semrád | C34: 1 | D34: 0 | E34: =C34+D34 -> 1 | F34: 0 | G34: 0 | H34: 0
A35: Bobříci | B35: David Čihák | C35: 0 | D35: 0 | E35: =C35+D35 -> 0 | F35: 0 | G35: 0 | H35: 0
A36: Bobříci | B36: Matyáš Dolenský | C36: 0 | D36: 0 | E36: =C36+D36 -> 0 | F36: 0 | G36: 0 | H36: 0
A37: Divoká sedma | B37: Jáchym Čech | C37: 2 | D37: 3 | E37: =C37+D37 -> 5 | F37: 0 | G37: 0 | H37: 0
A38: Divoká sedma | B38: Matěj Bojar | C38: 13 | D38: 1 | E38: =C38+D38 -> 14 | F38: 0 | G38: 0 | H38: 0
A39: Divoká sedma | B39: Jakub Holinka | C39: 3 | D39: 1 | E39: =C39+D39 -> 4 | F39: 0 | G39: 0 | H39: 0
A40: Divoká sedma | B40: Jaroslav Pečenka | C40: 3 | D40: 1 | E40: =C40+D40 -> 4 | F40: 0 | G40: 0 | H40: 0
A41: Divoká sedma | B41: Hanka Čechová | C41: 3 | D41: 0 | E41: =C41+D41 -> 3 | F41: 0 | G41: 0 | H41: 0
A42: Divoká sedma | B42: Hynek Matura | C42: 1 | D42: 0 | E42: =C42+D42 -> 1 | F42: 0 | G42: 0 | H42: 0
A43: Divoká sedma | B43: Tereza Václavková | C43: 0 | D43: 0 | E43: =C43+D43 -> 0 | F43: 0 | G43: 0 | H43: 0
A44: Fabiánky | B44: Justýna Rosívalová | C44: 4 | D44: 3 | E44: =C44+D44 -> 7 | F44: 0 | G44: 0 | H44: 0
A45: Fabiánky | B45: Tereza Nodžáková | C45: 5 | D45: 2 | E45: =C45+D45 -> 7 | F45: 0 | G45: 0 | H45: 0
A46: Fabiánky | B46: Sára Elicarová | C46: 1 | D46: 1 | E46: =C46+D46 -> 2 | F46: 0 | G46: 0 | H46: 0
A47: Fabiánky | B47: Nikol Dovicová | C47: 28 | D47: 0 | E47: =C47+D47 -> 28 | F47: 0 | G47: 0 | H47: 0
A48: Fabiánky | B48: Valérie Elicarová | C48: 0 | D48: 0 | E48: =C48+D48 -> 0 | F48: 0 | G48: 0 | H48: 0
A49: Tajfun | B49: Hynek Janiš | C49: 34 | D49: 32 | E49: =C49+D49 -> 66 | F49: 0 | G49: 0 | H49: 0
A50: Tajfun | B50: Matěj Kučera | C50: 12 | D50: 7 | E50: =C50+D50 -> 19 | F50: 0 | G50: 0 | H50: 0
A51: Tajfun | B51: Ráchel Žentelová | C51: 8 | D51: 3 | E51: =C51+D51 -> 11 | F51: 0 | G51: 0 | H51: 0
A52: Tajfun | B52: Hugo Jinek | C52: 14 | D52: 5 | E52: =C52+D52 -> 19 | F52: 0 | G52: 0 | H52: 0
A53: Tajfun | B53: Anežka Čiverná | C53: 10 | D53: 3 | E53: =C53+D53 -> 13 | F53: 0 | G53: 0 | H53: 0
A54: Tajfun | B54: František Zich | C54: 0 | D54: 1 | E54: =C54+D54 -> 1 | F54: 0 | G54: 0 | H54: 0
A55: Trilobit A | B55: Tomáš Kotek | C55: 26 | D55: 29 | E55: =C55+D55 -> 55 | F55: 0 | G55: 0 | H55: 0
A56: Trilobit A | B56: Štěpánka Borecká | C56: 21 | D56: 9 | E56: =C56+D56 -> 30 | F56: 0 | G56: 0 | H56: 0
A57: Trilobit A | B57: Daniel Peslar | C57: 16 | D57: 5 | E57: =C57+D57 -> 21 | F57: 0 | G57: 0 | H57: 0
A58: Trilobit A | B58: Matěj Lisý | C58: 7 | D58: 2 | E58: =C58+D58 -> 9 | F58: 0 | G58: 0 | H58: 0
A59: Trilobit A | B59: Denisa Hoffmanová | C59: 6 | D59: 4 | E59: =C59+D59 -> 10 | F59: 0 | G59: 0 | H59: 0
A60: Trilobit A | B60: Lukáš Marhoul | C60: 0 | D60: 0 | E60: =C60+D60 -> 0 | F60: 0 | G60: 0 | H60: 0
A61: Trilobit A | B61: Tomáš Marhoul | C61: 0 | D61: 0 | E61: =C61+D61 -> 0 | F61: 0 | G61: 0 | H61: 0
A62: Trilobit B | B62: Marika Garncarzová | C62: 8 | D62: 4 | E62: =C62+D62 -> 12 | F62: 0 | G62: 0 | H62: 0
A63: Trilobit B | B63: Michaela Hrnčířová | C63: 9 | D63: 4 | E63: =C63+D63 -> 13 | F63: 0 | G63: 0 | H63: 0
A64: Trilobit B | B64: Agáta Sváčková | C64: 4 | D64: 1 | E64: =C64+D64 -> 5 | F64: 0 | G64: 0 | H64: 0
A65: Trilobit B | B65: Šimon Částka | C65: 0 | D65: 0 | E65: =C65+D65 -> 0 | F65: 0 | G65: 0 | H65: 0
A66: Trilobit B | B66: Jonáš Urbančík | C66: 0 | D66: 0 | E66: =C66+D66 -> 0 | F66: 0 | G66: 0 | H66: 0
A67: Trilobit B | B67: Lenka Hoffmanová | C67: 0 | D67: 0 | E67: =C67+D67 -> 0 | F67: 0 | G67: 0 | H67: 0
A68: Trilobit B | B68: Natálie Mazálková | C68: 0 | D68: 0 | E68: =C68+D68 -> 0 | F68: 0 | G68: 0 | H68: 0
A69: Trilobit B | B69: Beáta Sváčková | C69: 0 | D69: 0 | E69: =C69+D69 -> 0 | F69: 0 | G69: 0 | H69: 0
A70: Fabiáni | B70: Petr Zdeněk | C70: 5 | E70: =C70+D70 -> 5
A71: Fabiánky | B71: Vanessa Mullerová | C71: 7 | D71: 1 | E71: =C71+D71 -> 8
A72: Tajfun | B72: Ondřej Kolár | C72: 16 | D72: 14 | E72: =C72+D72 -> 30
A73: Tajfun | B73: Jakub Bouchal | C73: 5 | D73: 5 | E73: =C73+D73 -> 10
A74: Tajfun | B74: Václav Čiverný | C74: 2 | D74: 2 | E74: =C74+D74 -> 4
A75: Trilobit A | B75: Jan Lederer | C75: 6 | D75: 4 | E75: =C75+D75 -> 10
A76: Trilobit A | B76: Vojtěch Lukeš | C76: 2 | D76: 4 | E76: =C76+D76 -> 6
A77: Bobříci | B77: Václav Svoboda | D77: 1 | E77: =C77+D77 -> 1
E78: =C78+D78 -> 0
E79: =C79+D79 -> 0
E80: =C80+D80 -> 0
E81: =C81+D81 -> 0
E82: =C82+D82 -> 0
E83: =C83+D83 -> 0
E84: =C84+D84 -> 0
E85: =C85+D85 -> 0
E86: =C86+D86 -> 0
E87: =C87+D87 -> 0
E88: 0
E89: 0
E90: 0
E91: 0
E92: 0
E93: 0
E94: 0
E95: 0
E96: 0
E97: 0
E98: 0
E99: 0
E100: 0
E101: 0
E102: 0
E103: 0
E104: 0
E105: 0
E106: 0
E107: 0
E108: 0
E109: 0
E110: 0
E111: 0
E112: 0
E113: 0
E114: 0
E115: 0
E116: 0
E117: 0
E118: 0
E119: 0
E120: 0
E121: 0
E122: 0
E123: 0
E124: 0
E125: 0
E126: 0
E127: 0
E128: 0
E129: 0
E130: 0
E131: 0
E132: 0
E133: 0
E134: 0
E135: 0
E136: 0
E137: 0
E138: 0
E139: 0
E140: 0
E141: 0
E142: 0
E143: 0
E144: 0
E145: 0
E146: 0
E147: 0
E148: 0
E149: 0
E150: 0
E151: 0
E152: 0
E153: 0
E154: 0
E155: 0
E156: 0
E157: 0
E158: 0
E159: 0
E160: 0
E161: 0
E162: 0
E163: 0
E164: 0
E165: 0
E166: 0
E167: 0
E168: 0
E169: 0
E170: 0
E171: 0
E172: 0
E173: 0
E174: 0
E175: 0
E176: 0
E177: 0
E178: 0
E179: 0
E180: 0
E181: 0
E182: 0
E183: 0
E184: 0
E185: 0
E186: 0
E187: 0
E188: 0
E189: 0
E190: 0
E191: 0
E192: 0
E193: 0
E194: 0
E195: 0
E196: 0
E197: 0
E198: 0
E199: 0
E200: 0
... 4800 more rows
